fUSD/lending_fUSD_20240508
["ID","MTS","AMOUNT","RATE_DAILY","PERIOD"]
[326662973,1715207471505,-500.0,0.00029041,5]
[326662974,1715207471514,-500.0,0.00029041,5]
[326662975,1715207471525,-497.54,0.00029041,5]
[326662976,1715207471534,-500.0,0.00029041,5]
[326662977,1715207471544,-500.0,0.00029041,5]
[326662978,1715207471554,-500.0,0.00029041,5]
[326662979,1715207471564,-1025.07,0.00029041,5]
[326662980,1715207471573,-1224.05,0.00029041,5]
[326662981,1715207471583,-500.0,0.00029041,5]
[326662982,1715207471592,-1296.14,0.00029041,5]
[326662983,1715207471602,-500.0,0.00029041,5]
[326662984,1715207471612,-500.0,0.00029041,5]
[326662985,1715207471621,-500.0,0.00029041,5]
[326662986,1715207471630,-500.0,0.00029041,5]
[326662987,1715207471639,-754.94,0.00029041,5]
[326662988,1715207471648,-500.0,0.00029041,5]
[326662989,1715207471657,-1131.17,0.00029041,5]
[326662990,1715207471667,-500.0,0.00029041,5]
[326662991,1715207471676,-1669.12,0.00029041,5]
[326662992,1715207471685,-500.0,0.00029041,5]
[326662993,1715207471694,-500.0,0.00029041,2]
[326662994,1715207471703,-500.0,0.00029041,5]
[326662995,1715207471712,-500.0,0.00029041,5]
[326662996,1715207471721,-1528.3,0.00029041,5]
[326662997,1715207471732,-500.0,0.00029041,2]
[326662998,1715207471742,-193.82,0.00029041,5]
[326662999,1715207471752,-500.0,0.00029041,5]
[326663000,1715207471761,-648.7,0.00029041,5]
[326663001,1715207471770,-500.0,0.00029041,5]
[326663002,1715207471780,-604.45,0.00029041,5]
[326663003,1715207471796,-1348.39,0.00029041,5]
[326663004,1715207471822,-2135.84,0.00029041,5]
[326663005,1715207471834,-500.0,0.00029041,5]
[326663006,1715207471846,-548.28,0.00029041,5]
[326663007,1715207471856,-500.0,0.00029041,5]
[326663008,1715207471866,-500.0,0.00029041,5]
[326663009,1715207471876,-500.0,0.00029041,5]
[326663010,1715207471886,-2922.46,0.00029041,5]
[326663011,1715207471896,-500.0,0.00029041,5]
[326663012,1715207471906,-500.0,0.00029041,5]
[326663013,1715207471916,-500.0,0.00029041,5]
[326663014,1715207471925,-219.73,0.00029041,5]
[326663015,1715207471935,-303.52,0.00029041,5]
[326663016,1715207471944,-500.0,0.00029041,5]
[326663017,1715207471954,-500.0,0.00029041,5]
[326663018,1715207471964,-500.0,0.00029041,5]
[326663019,1715207471974,-500.0,0.00029041,5]
[326663020,1715207471984,-1359.38,0.00029041,5]
[326663021,1715207471993,-1504.27,0.00029041,5]
[326663022,1715207472003,-760.09,0.00029041,5]
[326663023,1715207472012,-209.27923061,0.00029041,5]
[326663024,1715207472021,-500.0,0.00029041,5]
[326663025,1715207472033,-500.0,0.00029041,5]
[326663026,1715207472043,-500.0,0.00029041,5]
[326663027,1715207472052,-623.82,0.00029041,5]
[326663028,1715207472064,-500.0,0.00029041,5]
[326663029,1715207472073,-500.0,0.00029041,5]
[326663030,1715207472083,-620.98,0.00029041,5]
[326663031,1715207472092,-500.0,0.00029041,5]
[326663032,1715207472101,-889.65,0.00029041,5]
[326663033,1715207472112,-500.0,0.00029041,5]
[326663034,1715207472123,-500.0,0.00029041,5]
[326663035,1715207472133,-269.97,0.00029041,5]
[326663036,1715207472142,-500.0,0.00029041,5]
[326663037,1715207472151,-500.0,0.00029041,5]
[326663038,1715207472161,-500.0,0.00029041,5]
[326663039,1715207472171,-500.0,0.00029041,5]
[326663040,1715207472181,-538.79,0.00029041,5]
[326663041,1715207472191,-500.0,0.00029041,5]
[326663042,1715207472200,-500.0,0.00029041,5]
[326663043,1715207472209,-500.0,0.00029041,5]
[326663044,1715207472218,-500.0,0.00029041,5]
[326663045,1715207472227,-500.0,0.00029041,5]
[326663046,1715207472237,-1237.79,0.00029041,5]
[326663047,1715207472246,-500.0,0.00029041,5]
[326663048,1715207472255,-500.0,0.00029041,5]
[326663049,1715207472265,-636.21,0.00029041,5]
[326663050,1715207472274,-500.0,0.00029041,5]
[326663051,1715207472284,-500.0,0.00029041,5]
[326663052,1715207472293,-898.36,0.00029041,5]
[326663053,1715207472302,-500.0,0.00029041,5]
[326663054,1715207472311,-1627.54,0.00029041,5]
[326663055,1715207472320,-921.77,0.00029041,5]
[326663056,1715207472330,-500.0,0.00029041,5]
[326663057,1715207472339,-1093.28,0.00029041,5]
[326663058,1715207472348,-500.0,0.00029041,5]
[326663059,1715207472358,-667.53,0.00029041,5]
[326663060,1715207472371,-444.86,0.00029041,5]
[326663061,1715207472381,-500.0,0.00029041,5]
[326663062,1715207472391,-500.0,0.00029041,5]
[326663063,1715207472401,-500.0,0.00029041,5]
[326663064,1715207472410,-1936.02,0.00029041,5]
[326663065,1715207472420,-4643.91,0.00029041,5]
[326663066,1715207472430,-500.0,0.00029041,5]
[326663067,1715207472440,-1198.78,0.00029041,5]
[326663068,1715207472449,-1049.94,0.00029041,5]
[326663069,1715207472458,-500.0,0.00029041,5]
[326663070,1715207472468,-847.69,0.00029041,5]
[326663071,1715207472478,-552.15,0.00029041,5]
[326663072,1715207472487,-3011.44,0.00029041,5]
[326663073,1715207472496,-740.77,0.00029041,5]
[326663074,1715207472505,-500.0,0.00029041,5]
[326663075,1715207472515,-681.96,0.00029041,5]
[326663076,1715207472524,-645.64,0.00029041,5]
[326663077,1715207472534,-503.89,0.00029041,5]
[326663078,1715207472543,-587.9,0.00029041,5]
[326663079,1715207472556,-500.0,0.00029041,5]
[326663080,1715207472566,-500.0,0.00029041,5]
[326663081,1715207472575,-164.67,0.00029041,5]
[326663082,1715207472585,-500.0,0.00029041,5]
[326663083,1715207472595,-386.12,0.00029041,5]
[326663084,1715207472604,-2056.06,0.00029041,5]
[326663085,1715207472618,-964.77,0.00029041,5]
[326663086,1715207472627,-500.0,0.00029041,5]
[326663087,1715207472636,-150.0,0.00029041,5]
[326663088,1715207472645,-500.0,0.00029041,5]
[326663089,1715207472653,-500.0,0.00029041,5]
[326663090,1715207472662,-1733.85,0.00029041,5]
[326663091,1715207472671,-500.0,0.00029041,5]
[326663092,1715207472680,-500.0,0.00029041,5]
[326663093,1715207472690,-598.13,0.00029041,5]
[326663094,1715207472700,-599.57,0.00029041,5]
[326663095,1715207472710,-2316.94,0.00029041,5]
[326663096,1715207472719,-500.0,0.00029041,5]
[326663097,1715207472728,-500.0,0.00029041,5]
[326663098,1715207472738,-655.25,0.00029041,5]
[326663099,1715207472747,-2843.32,0.00029041,5]
[326663100,1715207472756,-500.0,0.00029041,5]
[326663101,1715207472766,-500.0,0.00029041,5]
[326663102,1715207472775,-500.0,0.00029041,5]
[326663103,1715207472785,-500.0,0.00029041,5]
[326663104,1715207472798,-500.0,0.00029041,5]
[326663105,1715207472807,-500.0,0.00029041,5]
[326663106,1715207472816,-1914.75,0.00029041,5]
[326663107,1715207472826,-168.271257,0.00029041,7]
[326663108,1715207472835,-617.58,0.00029041,5]
[326663109,1715207472846,-500.0,0.00029041,5]
[326663110,1715207472855,-557.82,0.00029041,5]
[326663111,1715207472867,-500.0,0.00029041,5]
[326663112,1715207472878,-500.0,0.00029041,5]
[326663113,1715207473019,-311.82,0.00029041,5]
[326663114,1715207473029,-2179.57,0.00029041,5]
[326663115,1715207473039,-616.62,0.00029041,5]
[326663116,1715207473048,-168.271257,0.00029041,7]
[326663117,1715207473057,-595.73,0.00029041,5]
[326663118,1715207473068,-500.0,0.00029041,5]
[326663119,1715207473078,-500.0,0.00029041,5]
[326663120,1715207473088,-500.0,0.00029041,5]
[326663121,1715207473098,-912.72,0.00029041,5]
[326663122,1715207473107,-561.52,0.00029041,5]
[326663123,1715207473119,-500.0,0.00029041,5]
[326663124,1715207473128,-7889.76,0.00029041,5]
[326663125,1715207473138,-500.0,0.00029041,5]
[326663126,1715207473147,-851.67,0.00029041,5]
[326663127,1715207473157,-500.0,0.00029041,5]
[326663128,1715207473167,-173.52,0.00029041,5]
[326663129,1715207473178,-521.93,0.00029041,5]
[326663130,1715207473188,-536.22,0.00029041,5]
[326663131,1715207473197,-500.0,0.00029041,5]
[326663132,1715207473207,-679.62,0.00029041,5]
[326663133,1715207473217,-500.0,0.00029041,5]
[326663134,1715207473226,-1013.97,0.00029041,5]
[326663135,1715207473236,-517.74,0.00029041,5]
[326663136,1715207473245,-1447.25,0.00029041,5]
[326663137,1715207473255,-500.0,0.00029041,5]
[326663138,1715207473264,-1134.94,0.00029041,5]
[326663139,1715207473273,-500.0,0.00029041,5]
[326663140,1715207473284,-500.0,0.00029041,5]
[326663141,1715207473293,-500.0,0.00029041,5]
[326663142,1715207473302,-556.2,0.00029041,5]
[326663143,1715207473312,-500.0,0.00029041,5]
[326663144,1715207473321,-500.0,0.00029041,5]
[326663145,1715207473331,-1454.68,0.00029041,5]
[326663146,1715207473340,-186.46,0.00029041,5]
[326663147,1715207473349,-1851.13,0.00029041,5]
[326663148,1715207473359,-500.0,0.00029041,5]
[326663149,1715207473370,-1121.41,0.00029041,5]
[326663150,1715207473379,-500.0,0.00029041,5]
[326663151,1715207473389,-500.0,0.00029041,5]
[326663152,1715207473399,-769.76,0.00029041,5]
[326663153,1715207473409,-500.0,0.00029041,5]
[326663154,1715207473418,-519.14,0.00029041,5]
[326663155,1715207473428,-8565.34,0.00029041,5]
[326663156,1715207473437,-179.058528,0.00029041,7]
[326663157,1715207473447,-1657.56,0.00029041,5]
[326663158,1715207473456,-635.83,0.00029041,5]
[326663159,1715207473466,-690.76,0.00029041,5]
[326663160,1715207473475,-500.0,0.00029041,5]
[326663161,1715207473485,-547.86,0.00029041,5]
[326663162,1715207473495,-347.75,0.00029041,5]
[326663163,1715207473504,-1236.85,0.00029041,5]
[326663164,1715207473514,-500.0,0.00029041,5]
[326663165,1715207473523,-4438.24,0.00029041,5]
[326663166,1715207473533,-500.0,0.00029041,5]
[326663167,1715207473543,-500.0,0.00029041,5]
[326663168,1715207473553,-233.67,0.00029041,5]
[326663169,1715207473563,-500.0,0.00029041,5]
[326663170,1715207473573,-500.0,0.00029041,5]
[326663171,1715207473583,-500.0,0.00029041,5]
[326663172,1715207473593,-851.79,0.00029041,5]
[326663173,1715207473602,-500.0,0.00029041,5]
[326663174,1715207473612,-500.0,0.00029041,5]
[326663175,1715207473622,-14449.93,0.00029041,5]
[326663176,1715207473632,-500.0,0.00029041,5]
[326663177,1715207473642,-245.41,0.00029041,5]
[326663178,1715207473652,-500.0,0.00029041,5]
[326663179,1715207473662,-748.55,0.00029041,5]
[326663180,1715207473671,-500.0,0.00029041,2]
[326663181,1715207473681,-749.56,0.00029041,5]
[326663182,1715207473691,-500.0,0.00029041,5]
[326663183,1715207473700,-500.0,0.00029041,5]
[326663184,1715207473711,-861.09,0.00029041,5]
[326663185,1715207473721,-663.18,0.00029041,5]
[326663186,1715207473730,-500.0,0.00029041,5]
[326663187,1715207473740,-500.0,0.00029041,5]
[326663188,1715207473750,-1185.86,0.00029041,5]
[326663189,1715207473760,-3002.74,0.00029041,5]
[326663190,1715207473769,-534.57,0.00029041,5]
[326663191,1715207473779,-500.0,0.00029041,5]
[326663192,1715207473789,-500.0,0.00029041,5]
[326663193,1715207473803,-167.01,0.00029041,5]
[326663194,1715207473812,-500.0,0.00029041,5]
[326663195,1715207473822,-500.0,0.00029041,2]
[326663196,1715207473832,-500.0,0.00029041,5]
[326663197,1715207473843,-737.92,0.00029041,5]
[326663198,1715207473853,-500.0,0.00029041,5]
[326663199,1715207473863,-1985.13,0.00029041,5]
[326663200,1715207473874,-500.0,0.00029041,5]
[326663201,1715207473883,-9681.9,0.00029041,2]
[326663202,1715207473892,-150.0,0.00029042,2]
[326663203,1715207473902,-150.0,0.00029056,2]
[326663204,1715207473911,-150.0,0.00029067,2]
[326663205,1715207473921,-150.0,0.0002908,2]
[326663206,1715207473930,-150.0,0.0002908,2]
[326663207,1715207473940,-150.0,0.00029085,2]
[326663208,1715207473950,-505.0,0.00029086,2]
[326663209,1715207473959,-150.0,0.00029113,2]
[326663210,1715207473969,-150.0,0.00029114,2]
[326663211,1715207473979,-152.0,0.00029121,3]
[326663212,1715207473989,-150.0,0.00029121,2]
[326663213,1715207473998,-150.0,0.0002914,2]
[326663214,1715207474007,-150.0,0.00029143,2]
[326663215,1715207474017,-150.0,0.00029155,2]
[326663216,1715207474027,-150.0,0.00029161,2]
[326663217,1715207474037,-150.0,0.00029164,2]
[326663218,1715207474046,-295.966388,0.00029171,7]
[326663219,1715207474056,-295.966388,0.00029171,7]
[326663220,1715207474066,-150.0,0.00029185,2]
[326663221,1715207474077,-150.0,0.00029188,2]
[326663222,1715207474087,-200.0,0.00029191,2]
[326663223,1715207474096,-1000.0,0.00029191,10]
[326663224,1715207474105,-500.0,0.00029191,2]
[326663225,1715207474116,-151.0,0.00029191,7]
[326663226,1715207474125,-201.358263,0.00029191,7]
[326663227,1715207474134,-151.0,0.00029191,7]
[326663228,1715207474143,-201.358263,0.00029191,7]
[326663229,1715207474153,-150.0,0.00029191,2]
[326663230,1715207474162,-150.0,0.00029205,2]
[326663231,1715207474172,-150.0,0.00029205,2]
[326663232,1715207474181,-150.0,0.0002921,2]
[326663233,1715207474191,-150.0,0.0002921,2]
[326663234,1715207474200,-150.0,0.00029243,2]
[326663235,1715207474210,-150.0,0.00029251,2]
[326663236,1715207474219,-150.0,0.00029253,2]
[326663237,1715207474228,-150.0,0.00029265,2]
[326663238,1715207474238,-150.0,0.00029266,2]
[326663239,1715207474249,-150.0,0.00029276,2]
[326663240,1715207474259,-150.0,0.00029277,2]
[326663241,1715207474269,-151.0,0.00029285,7]
[326663242,1715207474279,-151.0,0.00029285,7]
[326663243,1715207474288,-150.0,0.00029287,2]
[326663244,1715207474298,-150.0,0.00029293,2]
[326663245,1715207474307,-150.0,0.00029294,2]
[326663246,1715207474317,-150.0,0.00029307,2]
[326663247,1715207474327,-150.0,0.00029308,2]
[326663248,1715207474336,-150.0,0.00029318,2]
[326663249,1715207474347,-150.0,0.00029321,2]
[326663250,1715207474356,-150.0,0.00029323,2]
[326663251,1715207474367,-150.0,0.00029323,2]
[326663252,1715207474376,-3433.52159965,0.00029329,2]
[326663253,1715207474385,-156.71892795,0.00029329,2]
[326663254,1715207474395,-2067.41781312,0.00029329,2]
[326663255,1715207474405,-150.0,0.0002934,2]
[326663256,1715207474415,-150.0,0.00029343,2]
[326663257,1715207474425,-150.0,0.00029355,2]
[326663258,1715207474436,-150.0,0.00029356,2]
[326663259,1715207474446,-150.0,0.00029358,2]
[326663260,1715207474455,-150.0,0.00029358,2]
[326663261,1715207474465,-150.0,0.0002936,2]
[326663262,1715207474475,-150.0,0.00029362,2]
[326663263,1715207474484,-150.0,0.00029362,2]
[326663264,1715207474495,-150.0,0.00029367,2]
[326663265,1715207474505,-150.0,0.00029368,2]
[326663266,1715207474516,-700.0,0.0002937,2]
[326663267,1715207474525,-400.0,0.0002937,2]
[326663268,1715207474535,-150.0,0.00029373,2]
[326663269,1715207474544,-150.0,0.00029384,2]
[326663270,1715207474553,-15723.86074107,0.00029384,6]
[326663271,1715207474563,-646157.58735335,0.00029385,3]
[326663272,1715207474586,-3064.23331078,0.00029385,3]
[326663273,1715207474597,-4872.09748117,0.00029385,3]
[326663274,1715207474608,-6127.4,0.00029385,3]
[326663275,1715207474621,-1976.04458025,0.00029385,3]
[326663276,1715207474633,-319.395,0.00029385,3]
[326663277,1715207474644,-813.64995,0.00029385,3]
[326663278,1715207474656,-8766.76781148,0.00029385,3]
[326663279,1715207474667,-1940.94509564,0.00029385,3]
[326663280,1715207474678,-7969.17193469,0.00029385,3]
[326663281,1715207474689,-3131.87472,0.00029385,3]
[326663282,1715207474700,-6714.73959698,0.00029385,3]
[326663283,1715207474711,-901.19631038,0.00029385,3]
[326663284,1715207474722,-262.65011809,0.00029385,3]
[326663285,1715207474734,-3055.35126391,0.00029385,3]
[326663286,1715207474745,-26921.04453382,0.00029385,3]
[326663287,1715207474756,-313.27,0.00029385,3]
[326663288,1715207476920,-429.17891897,0.00029385,3]
[326663289,1715207476931,-22265.01929867,0.00029385,3]
[326663290,1715207476942,-11100.04115182,0.00029385,3]
[326663291,1715207476954,-652.2519,0.00029385,3]
[326663292,1715207476965,-14846.03604008,0.00029385,3]
[326663293,1715207476977,-1765.0,0.00029385,3]
[326663294,1715207476988,-2076.48894511,0.00029385,3]
[326663295,1715207478251,-4737.07272896,0.0001025,2]
[326663296,1715207478263,-106.54598025,0.0001788,2]
[326663297,1715207478274,-615.99278176,0.0001788,2]
[326663298,1715207478286,-409.13330965,0.0001788,2]
[326663299,1715207478295,-442.30663751,0.00020092,2]
[326663300,1715207478307,-689.36543415,0.00020092,2]
[326663301,1715207478317,-208.0,0.00021231,2]
[326663302,1715207478327,-538.70563449,0.00022,2]
[326663303,1715207478338,-504.68927961,0.00022,2]
[326663304,1715207478349,-34.01635488,0.00022,2]
[326663305,1715207478358,-538.70563449,0.00022,2]
[326663306,1715207478370,-94.62476867,0.00022,2]
[326663307,1715207478381,-444.08086582,0.00022,2]
[326663308,1715207478390,-538.70563449,0.00022,2]
[326663309,1715207478400,-538.70563449,0.00022,2]
[326663310,1715207478410,-538.70563449,0.00022,2]
[326663311,1715207478419,-538.70563449,0.00022,2]
[326663312,1715207478428,-538.70563449,0.00022,2]
[326663313,1715207478438,-538.70563449,0.00022,2]
[326663314,1715207478447,-538.70563449,0.00022,2]
[326663315,1715207478456,-538.70563449,0.00022,2]
[326663316,1715207478466,-538.70563449,0.00022,2]
[326663317,1715207478475,-538.70563449,0.00022,2]
[326663318,1715207478485,-538.70563449,0.00022,2]
[326663319,1715207478494,-538.70563449,0.00022,2]
[326663320,1715207478503,-538.70563449,0.00022,2]
[326663321,1715207478513,-438.0,0.00024231,2]
[326663322,1715207478522,-164.0,0.00024231,2]
[326663323,1715207478532,-436.0,0.00027231,2]
[326663324,1715207478542,-403.026842,0.00027397,7]
[326663325,1715207478552,-181.90538452,0.00027397,2]
[326663326,1715207478564,-318.09461548,0.00027397,2]
[326663327,1715207478574,-500.0,0.00027397,2]
[326663328,1715207478589,-500.0,0.00027397,2]
[326663329,1715207478598,-403.026842,0.00027397,7]
[326663330,1715207478608,-1524.68156066,0.00027397,2]
[326663331,1715207478622,-384.83468693,0.00027397,2]
[326663332,1715207478636,-357.99,0.00027397,2]
[326663333,1715207478647,-824.10375241,0.00027397,2]
[326663334,1715207478656,-149.77973856,0.00027397,2]
[326663335,1715207478668,-350.22026144,0.00027397,2]
[326663336,1715207478678,-500.0,0.00027945,5]
[326663337,1715207478688,-641.21,0.00027945,5]
[326663338,1715207478697,-3091.61,0.00027945,5]
[326663339,1715207478706,-403.026842,0.00027973,7]
[326663340,1715207478715,-500.0,0.00028493,5]
[326663341,1715207478725,-3091.61,0.00028493,5]
[326663342,1715207478734,-174.543055,0.00029041,7]
[326663343,1715207478744,-2792.76,0.00029041,5]
[326663344,1715207478754,-500.0,0.00029041,5]
[326663345,1715207478768,-500.0,0.00029041,5]
[326663346,1715207478777,-403.026842,0.00029041,7]
[326663347,1715207478786,-609.32851456,0.00029041,5]
[326663348,1715207478802,-2482.28148544,0.00029041,5]
[326663349,1715207478811,-595.79351456,0.00029385,3]
[326663350,1715207478824,-915.94314115,0.00029385,3]
[326663351,1715207479106,-185.03,0.000137,2]
[326663352,1715207479116,-150.0,0.00021231,2]
[326663353,1715207479126,-538.70563449,0.00022,2]
[326663354,1715207479135,-538.70563449,0.00022,2]
[326663355,1715207479145,-427.95202185,0.00027397,2]
[326663356,1715207479156,-92.45775751,0.00027397,2]
[326663357,1715207479167,-1702.75,0.00027397,2]
[326663358,1715207479176,-1702.75,0.00027945,5]
[326663359,1715207479185,-150.0,0.00028676,2]
[326663360,1715207479195,-150.0,0.00028816,2]
[326663361,1715207479206,-150.0,0.00028941,2]
[326663362,1715207479215,-118905.65486555,0.00029385,3]
[326663363,1715207479227,-430337.91347469,0.00029385,3]
[326663364,1715207479238,-236753.10690388,0.00029385,3]
[326663365,1715207479249,-6287.050306,0.00029385,3]
[326663366,1715207479262,-963.73178324,0.00029385,3]
[326663367,1715207479273,-3957.69665821,0.00029385,3]
[326663368,1715207479287,-6308.31541324,0.00029385,3]
[326663369,1715207479298,-3499.999993,0.00029385,3]
[326663370,1715207479310,-1367.25011,0.00029385,3]
[326663371,1715207480949,-3599.81298456,0.00010434,2]
[326663372,1715207480960,-661.77047748,0.00010434,2]
[326663373,1715207480972,-365.15906348,0.00010434,2]
[326663374,1715207480984,-896.151839,0.00010434,2]
[326663375,1715207480995,-298.32023115,0.00010434,2]
[326663376,1715207481005,-427.75787766,0.00013698,2]
[326663377,1715207481014,-377.77005219,0.00013698,2]
[326663378,1715207483226,2861.82253979,9.397e-05,2]
[326663379,1715207554327,70805.86652023,9.397e-05,2]
[326663381,1715207576224,150.0,8.457e-05,2]
[326663382,1715207576251,150.0,8.457e-05,2]
[326663383,1715207576806,150.0,8.457e-05,2]
[326663384,1715207577597,17.37038368,8.457e-05,2]
[326663385,1715208006114,132.62961632,8.457e-05,2]
[326663386,1715208008570,17.37038368,8.457e-05,2]
[326663387,1715208010021,132.62961632,8.457e-05,2]
[326663388,1715208013472,150.0,8.457e-05,2]
[326663389,1715208015585,12.11600556,8.457e-05,2]
[326663390,1715208162053,137.88399444,8.86e-05,2]
[326663391,1715208163571,41.84600556,8.86e-05,2]
[326663393,1715208495389,108.15399444,8.978e-05,2]
[326663394,1715208495434,139.28600556,8.978e-05,2]
[326663395,1715208597617,10.71399444,8.932e-05,2]
[326663396,1715208600028,150.0,8.932e-05,2]
[326663397,1715208600625,150.0,8.932e-05,2]
[326663398,1715208600653,150.0,8.932e-05,2]
[326663399,1715208600679,150.0,8.932e-05,2]
[326663400,1715208600705,150.0,8.932e-05,2]
[326663401,1715208600731,150.0,8.932e-05,2]
[326663402,1715208600756,150.0,8.932e-05,2]
[326663403,1715208600781,150.0,8.932e-05,2]
[326663404,1715208600804,150.0,8.932e-05,2]
[326663405,1715208600834,150.0,8.932e-05,2]
[326663406,1715208601626,150.0,8.932e-05,2]
[326663407,1715208601652,150.0,8.932e-05,2]
[326663408,1715208601677,150.0,8.932e-05,2]
[326663409,1715208601704,150.0,8.932e-05,2]
[326663410,1715208601730,176.43775847,8.932e-05,2]
[326663414,1715208642712,-242.63184528,8.93e-05,2]
[326663421,1715208642723,-155.91324332,8.93e-05,2]
[326663427,1715208642732,-182.32030162,8.93e-05,2]
[326663435,1715208642744,-3860.40152884,8.93e-05,2]
[326663443,1715208642757,-4000.0,8.93e-05,2]
[326663448,1715208642769,-14762.03246094,8.93e-05,2]
[326663453,1715208642778,-155.0,8.931e-05,2]
[326663456,1715208642787,-4737.07272896,8.931e-05,2]
[326663459,1715208642796,-2183.43778436,8.931e-05,2]
[326663462,1715208642805,-614.16283109,8.932e-05,2]
[326663465,1715208642816,-2458.93688736,8.932e-05,2]
[326663469,1715208642827,-317.946002,8.932e-05,2]
[326663472,1715208642838,-593.41505923,8.932e-05,2]
[326663475,1715208642849,-1262.010745,8.932e-05,2]
[326663479,1715208642862,-2332.32978955,8.932e-05,2]
[326663482,1715208642873,-713.07366266,8.932e-05,2]
[326663485,1715208642883,-893.59727248,8.932e-05,2]
[326663489,1715208642895,-2256.70599772,8.932e-05,2]
[326663492,1715208642904,-155.0,9.047e-05,2]
[326663495,1715208642913,-32.56108804,9.05e-05,2]
[326663498,1715208642924,-1346.52458646,9.05e-05,2]
[326663501,1715208642935,-3563.31376804,9.052e-05,2]
[326663504,1715208642946,-809.73333754,9.052e-05,2]
[326663508,1715208642957,-251.61999996,9.052e-05,2]
[326663510,1715208642979,-30316.46878288,9.052e-05,2]
[326663512,1715208642991,-1000.0,9.056e-05,2]
[326663514,1715208643001,-150.0,9.348e-05,2]
[326663516,1715208643010,-1000.0,9.351e-05,2]
[326663518,1715208643020,-150.0,9.37e-05,2]
[326663520,1715208643029,-4688.93845827,9.387e-05,2]
[326663522,1715208643039,-556.51638506,9.394e-05,2]
[326663524,1715208643048,-179.49292044,9.394e-05,2]
[326663526,1715208643058,-1495.72663807,9.394e-05,2]
[326663528,1715208643068,-2217.06939239,9.394e-05,2]
[326663530,1715208643078,-156.34146276,9.394e-05,2]
[326663532,1715208643087,-155.0,9.394e-05,2]
[326663534,1715208643096,-491.08997041,9.394e-05,2]
[326663536,1715208643106,-249.59658488,9.394e-05,2]
[326663538,1715208643117,-155.0,9.395e-05,2]
[326663540,1715208643127,-304.30621889,9.395e-05,2]
[326663542,1715208643135,-155.0,9.395e-05,2]
[326663544,1715208643145,-706.86968625,9.395e-05,2]
[326663546,1715208643154,-206.88313584,9.395e-05,2]
[326663548,1715208643163,-155.47393474,9.395e-05,2]
[326663550,1715208643172,-1208.43830019,9.395e-05,2]
[326663552,1715208643182,-320.95413161,9.395e-05,2]
[326663554,1715208643191,-400.70627376,9.395e-05,2]
[326663556,1715208643201,-155.0,9.395e-05,2]
[326663558,1715208643210,-500.0,9.395e-05,2]
[326663559,1715208643219,-155.0,9.396e-05,2]
[326663560,1715208643229,-3489.95134745,9.396e-05,2]
[326663563,1715208643240,-187073.65955411,9.397e-05,2]
[326663564,1715208643250,-399.42482649,9.397e-05,2]
[326663566,1715208643260,-9875.29,9.67e-05,4]
[326663569,1715208643269,-3832.87,9.67e-05,2]
[326663570,1715208643279,-9403.3,9.67e-05,2]
[326663573,1715208643288,-150.99,9.67e-05,2]
[326663574,1715208643303,-151.12,9.901e-05,2]
[326663576,1715208643313,-151.12,9.948e-05,2]
[326663578,1715208643322,-151.12,9.995e-05,2]
[326663580,1715208643332,-155.0,0.0001,2]
[326663582,1715208643342,-369.89957834,0.0001,2]
[326663584,1715208643351,-427.91933056,0.0001,2]
[326663586,1715208643364,-204.34387367,0.0001,2]